Body Name,Body,Transaction Date,Value,Supplier,Description,Purchase Type,Cost Center,Department,Section
South Ribble Council,http://Statistics.Data.gov.uk\Doc\Local Authority\30UN,02/12/2020,570.00,Holiday Inn The Ringway,NAME REDACTED placement 18-23.11.20 570.00...cont,Accomodation,124250,Homelessness,Homelessness
South Ribble Council,http://Statistics.Data.gov.uk\Doc\Local Authority\30UN,02/12/2020,595.00,Holiday Inn The Ringway,NAME REDACTED continued placement 24.11 - 2.12.20 595.00 placement ended,Accomodation,124250,Homelessness,Homelessness
South Ribble Council,http://Statistics.Data.gov.uk\Doc\Local Authority\30UN,16/12/2020,"1,745.00",Holiday Inn Riversway,NAME REDACTED cont placement at Holiday Inn Riversway Preston 2-15.12.20 14 nights fixed price 1150 16-22.12.20 7 nights fixed price 595 placement ended 22.12.20,Accomodation,124250,Homelessness,Homelessness
South Ribble Council,http://Statistics.Data.gov.uk\Doc\Local Authority\30UN,06/10/2020,510.00,Holiday Inn Express,holiday Inn Express NAME REDACTED dog continued placement 6.10.20 x 14 nights fixed price 510.00,Accomodation,124250,Homelessness,Homelessness
South Ribble Council,http://Statistics.Data.gov.uk\Doc\Local Authority\30UN,13/10/2020,490.00,Holiday Inn Express,holiday Inn Express NAME REDACTED dog continued placement 13.10.20 x 7 nights 490.00 ( 33 on LS as over limit),Accomodation,124250,Homelessness,Homelessness
South Ribble Council,http://Statistics.Data.gov.uk\Doc\Local Authority\30UN,21/10/2020,522.00,Holiday Inn Express,holiday Inn Express NAME REDACTED dog continued placement 21.10.20 x 7 nights,Accomodation,124250,Homelessness,Homelessness
South Ribble Council,http://Statistics.Data.gov.uk\Doc\Local Authority\30UN,27/10/2020,521.00,Holiday Inn Express,NAME REDACTED dog continued placement 27.10 - 2.11.2020 fixed price,Accomodation,124250,Homelessness,Homelessness
South Ribble Council,http://Statistics.Data.gov.uk\Doc\Local Authority\30UN,03/11/2020,514.00,Holiday Inn Express,NAME REDACTED dog continued placement 3-10.11.2020 fixed price 514.00,Accomodation,124250,Homelessness,Homelessness
South Ribble Council,http://Statistics.Data.gov.uk\Doc\Local Authority\30UN,10/11/2020,524.00,Holiday Inn Express,NAME REDACTED dog continued placement 10-17.11.2020 fixed price 524.00,Accomodation,124250,Homelessness,Homelessness
South Ribble Council,http://Statistics.Data.gov.uk\Doc\Local Authority\30UN,17/11/2020,529.00,Holiday Inn Express,NAME REDACTED dog cont placement 17-23.11.20 fixed price 529,Accomodation,124250,Homelessness,Homelessness
South Ribble Council,http://Statistics.Data.gov.uk\Doc\Local Authority\30UN,24/11/2020,509.00,Holiday Inn Express,NAME REDACTED dog continued placement 24-30.11.20 fixed price 509,Accomodation,124250,Homelessness,Homelessness
South Ribble Council,http://Statistics.Data.gov.uk\Doc\Local Authority\30UN,27/11/2020,255.00,CLAREMONT HOTEL,"NAME REDACTED Claremont Hotel continued placement Fri 27,28 29 Nov 2020 85/night for family room.",Accomodation,124250,Homelessness,Homelessness
South Ribble Council,http://Statistics.Data.gov.uk\Doc\Local Authority\30UN,01/12/2020,516.00,Holiday Inn Express,NAME REDACTED dog continued placement 1-7.12.20 fixed price 516.00,Accomodation,124250,Homelessness,Homelessness
South Ribble Council,http://Statistics.Data.gov.uk\Doc\Local Authority\30UN,08/12/2020,493.00,Holiday Inn Express,NAME REDACTED dog cont placement 8-14.12.20 fixed price 493.00,Accomodation,124250,Homelessness,Homelessness
South Ribble Council,http://Statistics.Data.gov.uk\Doc\Local Authority\30UN,15/12/2020,478.00,Holiday Inn Express,NAME REDACTED dog continued placement 15-21.12.2020 fixed price 478.00,Accomodation,124250,Homelessness,Homelessness
South Ribble Council,http://Statistics.Data.gov.uk\Doc\Local Authority\30UN,16/12/2020,832.00,Holiday Inn Express,NAME REDACTED & Dog continued placement 22.12.2020 - 4.1.2021 13 nights fixed price 832.00,Accomodation,124250,Homelessness,Homelessness
South Ribble Council,http://Statistics.Data.gov.uk\Doc\Local Authority\30UN,08/10/2020,85.00,CLAREMONT HOTEL,NAME REDACTED placement Claremont Hotel 85/night family room 8.10.2020,Accomodation,124250,Homelessness,Homelessness
South Ribble Council,http://Statistics.Data.gov.uk\Doc\Local Authority\30UN,09/10/2020,119.00,Lea Gate,"NAME REDACTED placement at Lea Gate for fixed rate for weekend 9, 10&11/10/20 119.00",Accomodation,124250,Homelessness,Homelessness
South Ribble Council,http://Statistics.Data.gov.uk\Doc\Local Authority\30UN,09/10/2020,595.00,CLAREMONT HOTEL,NAME REDACTED continued placement x 7 nights @85/night family room 9-15.10.2020,Accomodation,124250,Homelessness,Homelessness
South Ribble Council,http://Statistics.Data.gov.uk\Doc\Local Authority\30UN,09/10/2020,595.00,CLAREMONT HOTEL,NAME REDACTED continued placement at 85/night x 7 nights 595.00,Accomodation,124250,Homelessness,Homelessness
South Ribble Council,http://Statistics.Data.gov.uk\Doc\Local Authority\30UN,12/10/2020,90.00,Lea Gate,NAME REDACTED final placement date 12.10.20 90 Lea Gate,Accomodation,124250,Homelessness,Homelessness
South Ribble Council,http://Statistics.Data.gov.uk\Doc\Local Authority\30UN,13/10/2020,33.00,Holiday inn express,holiday Inn Express balance for NAME REDACTED bill 13.10.20 33.00,Accomodation,124250,Homelessness,Homelessness
South Ribble Council,http://Statistics.Data.gov.uk\Doc\Local Authority\30UN,23/10/2020,595.00,CLAREMONT HOTEL,NAME REDACTED continued placement 23/10 at 85/night x 7 nights,Accomodation,124250,Homelessness,Homelessness
South Ribble Council,http://Statistics.Data.gov.uk\Doc\Local Authority\30UN,30/10/2020,595.00,CLAREMONT HOTEL,NAME REDACTED continued placement 30.10.20 85/night x 7 nights,Accomodation,124250,Homelessness,Homelessness
South Ribble Council,http://Statistics.Data.gov.uk\Doc\Local Authority\30UN,06/11/2020,255.00,CLAREMONT HOTEL,NAME REDACTED continued placement at 85/night x 3 nights 255.00,Accomodation,124250,Homelessness,Homelessness
South Ribble Council,http://Statistics.Data.gov.uk\Doc\Local Authority\30UN,09/11/2020,85.00,CLAREMONT HOTEL,NAME REDACTED additional night 85 9.11.2020 for continued placement,Accomodation,124250,Homelessness,Homelessness
South Ribble Council,http://Statistics.Data.gov.uk\Doc\Local Authority\30UN,10/11/2020,85.00,CLAREMONT HOTEL,NAME REDACTED continued placement for 1 night 85,Accomodation,124250,Homelessness,Homelessness
South Ribble Council,http://Statistics.Data.gov.uk\Doc\Local Authority\30UN,10/11/2020,595.00,CLAREMONT HOTEL,NAME REDACTED continued placement 7 nights 11.11.20 - 17.11.20 85/night 595.00,Accomodation,124250,Homelessness,Homelessness
South Ribble Council,http://Statistics.Data.gov.uk\Doc\Local Authority\30UN,18/11/2020,85.00,CLAREMONT HOTEL,NAME REDACTED cont placement additional night of 19.11.20 pending moving to TA flat - 85/night possibly leaving fri 20.11.20,Accomodation,124250,Homelessness,Homelessness
South Ribble Council,http://Statistics.Data.gov.uk\Doc\Local Authority\30UN,20/11/2020,255.00,CLAREMONT HOTEL,NAME REDACTED continued placement 20-22.11.20 3 nights x 85/n pending temporary flat,Accomodation,124250,Homelessness,Homelessness
South Ribble Council,http://Statistics.Data.gov.uk\Doc\Local Authority\30UN,23/11/2020,170.00,CLAREMONT HOTEL,continued placement NAME REDACTED at 85/night - Mon and Tues 23 &24/11 awaiting TA.,Accomodation,124250,Homelessness,Homelessness
South Ribble Council,http://Statistics.Data.gov.uk\Doc\Local Authority\30UN,25/11/2020,170.00,CLAREMONT HOTEL,NAME REDACTED cont placement at 85/n x 2 nights 25&26.11.20,Accomodation,124250,Homelessness,Homelessness
South Ribble Council,http://Statistics.Data.gov.uk\Doc\Local Authority\30UN,30/11/2020,85.00,CLAREMONT HOTEL,NAME REDACTED continued placement at the Claremont Hotel 30.11.2020 85.00,Accomodation,124250,Homelessness,Homelessness
South Ribble Council,http://Statistics.Data.gov.uk\Doc\Local Authority\30UN,01/12/2020,85.00,CLAREMONT HOTEL,NAME REDACTED continued placement Claremont Hotel 1.12.2020,Accomodation,124250,Homelessness,Homelessness
South Ribble Council,http://Statistics.Data.gov.uk\Doc\Local Authority\30UN,01/12/2020,170.00,CLAREMONT HOTEL,NAME REDACTED continued placement at Claremont HOtel 85/night 2&3.12.20,Accomodation,124250,Homelessness,Homelessness
South Ribble Council,http://Statistics.Data.gov.uk\Doc\Local Authority\30UN,03/12/2020,340.00,CLAREMONT HOTEL,NAME REDACTED continued placement Claremont HOtel 85/n x4 4-7/12/20,Accomodation,124250,Homelessness,Homelessness
South Ribble Council,http://Statistics.Data.gov.uk\Doc\Local Authority\30UN,08/12/2020,85.00,CLAREMONT HOTEL,NAME REDACTED continued placement x 1 night 8.12.20 85/n,Accomodation,124250,Homelessness,Homelessness
South Ribble Council,http://Statistics.Data.gov.uk\Doc\Local Authority\30UN,09/12/2020,170.00,CLAREMONT HOTEL,NAME REDACTED continued placement x 2 nights 9 10.12.20 85/n,Accomodation,124250,Homelessness,Homelessness
South Ribble Council,http://Statistics.Data.gov.uk\Doc\Local Authority\30UN,16/12/2020,727.00,Holiday Inn Express,NAME REDACTED trf placement from HI to HIX due to Christmas closure. 22.12.20 - 4.1.2021 fixed price 727.00,Accomodation,124250,Homelessness,Homelessness
South Ribble Council,http://Statistics.Data.gov.uk\Doc\Local Authority\30UN,23/10/2020,31.92,post office,Postage paid - speed indicator device,Store Purchase,170100,Neighbourhood Admin & Support,Admin Support
South Ribble Council,http://Statistics.Data.gov.uk\Doc\Local Authority\30UN,21/10/2020,267.50,DVLA,Road Tax FV69 HLD,Road Tax,112100,Area 2 - Waste Transport/Easte,Mechanics & Transport
South Ribble Council,http://Statistics.Data.gov.uk\Doc\Local Authority\30UN,21/10/2020,267.50,DVLA,FV69 GZJ Road Tax,Road Tax,112100,Area 2 - Waste Transport/Easte,Mechanics & Transport
South Ribble Council,http://Statistics.Data.gov.uk\Doc\Local Authority\30UN,21/10/2020,267.50,DVLA,Road tax ML67HVJ,Road Tax,173500,Area 2 - Waste Transport/Easte,Mechanics & Transport
South Ribble Council,http://Statistics.Data.gov.uk\Doc\Local Authority\30UN,21/10/2020,267.50,DVLA,Road Tax FV69 GUF,Road Tax,171600,Area 2 - Waste Transport/Easte,Mechanics & Transport
South Ribble Council,http://Statistics.Data.gov.uk\Doc\Local Authority\30UN,27/11/2020,265.00,DVLA,Road Tax Nov 20 CE63 FJX,Road Tax,112100,Area 2 - Waste Transport/Easte,Mechanics & Transport
South Ribble Council,http://Statistics.Data.gov.uk\Doc\Local Authority\30UN,27/11/2020,265.00,DVLA,Road Tax Nov 20 CE63 FJY,Road Tax,112100,Area 2 - Waste Transport/Easte,Mechanics & Transport
South Ribble Council,http://Statistics.Data.gov.uk\Doc\Local Authority\30UN,27/11/2020,300.00,DVLA,Road tax Nov 20 VO65 KRD,Road Tax,172840,Area 2 - Waste Transport/Easte,Mechanics & Transport
South Ribble Council,http://Statistics.Data.gov.uk\Doc\Local Authority\30UN,27/11/2020,300.00,DVLA,Road Tax NOV 20 VO65 KPZ,Road Tax,172840,Area 2 - Waste Transport/Easte,Mechanics & Transport
South Ribble Council,http://Statistics.Data.gov.uk\Doc\Local Authority\30UN,27/11/2020,300.00,DVLA,Road Tax NOV 20 VO65 KRF,Road Tax,172840,Area 2 - Waste Transport/Easte,Mechanics & Transport
South Ribble Council,http://Statistics.Data.gov.uk\Doc\Local Authority\30UN,27/11/2020,300.00,DVLA,Road Tax Nov 20 VO65 KRE,Road Tax,172840,Area 2 - Waste Transport/Easte,Mechanics & Transport
South Ribble Council,http://Statistics.Data.gov.uk\Doc\Local Authority\30UN,08/12/2020,102.50,DVSA,MOT test slots x 50 Vehicle Testing Station No - S002020,Online Purchase,172600,Area 2 - Waste Transport/Easte,Mechanics & Transport
South Ribble Council,http://Statistics.Data.gov.uk\Doc\Local Authority\30UN,08/12/2020,114.00,GB MOT TRAINING,MOT training course NAME REDACTED,Online Purchase,172600,Area 2 - Waste Transport/Easte,Mechanics & Transport
South Ribble Council,http://Statistics.Data.gov.uk\Doc\Local Authority\30UN,08/12/2020,114.00,GB TRAINING,MOT Training course - NAME REDACTED,Online Purchase,172600,Area 2 - Waste Transport/Easte,Mechanics & Transport
South Ribble Council,http://Statistics.Data.gov.uk\Doc\Local Authority\30UN,08/12/2020,114.00,GB TRAINING,MOT training course - NAME REDACTED,Online Purchase,172600,Area 2 - Waste Transport/Easte,Mechanics & Transport
South Ribble Council,http://Statistics.Data.gov.uk\Doc\Local Authority\30UN,08/12/2020,114.00,GB TRAINING,MOT training course - NAME REDACTED,Online Purchase,172600,Area 2 - Waste Transport/Easte,Mechanics & Transport
South Ribble Council,http://Statistics.Data.gov.uk\Doc\Local Authority\30UN,21/12/2020,302.50,DVLA,Road Tax Dec 2020 - PJ62 UCG,Online Purchase,172810,Area 2 - Waste Transport/Easte,Mechanics & Transport
South Ribble Council,http://Statistics.Data.gov.uk\Doc\Local Authority\30UN,06/10/2020,10.08,TESCO,FOOD SUPPLIES FOR COVID HUB FOOD PARCELS,Store Purchase,101019,Revenues Plus,Revenues Plus
South Ribble Council,http://Statistics.Data.gov.uk\Doc\Local Authority\30UN,22/10/2020,8.44,IONOS,EXTENDED SUPPORT FOR SOUTH RIBBLE PARTNERSHIP WEBSITE,Online Purchase,103100,Revenues Plus,Revenues Plus
South Ribble Council,http://Statistics.Data.gov.uk\Doc\Local Authority\30UN,09/11/2020,"2,052.00",B2B PARTNERSHIPS LTD,2 X JOB ADVERTS,Online Purchase,153000,Revenues Plus,Revenues Plus
South Ribble Council,http://Statistics.Data.gov.uk\Doc\Local Authority\30UN,12/11/2020,120.00,UNAWARDS TICKETS,JOB ADVERT,Online Purchase,115250,Revenues Plus,Revenues Plus
South Ribble Council,http://Statistics.Data.gov.uk\Doc\Local Authority\30UN,12/11/2020,378.00,WESTMINSTER INSIGHT,TACKLING HOMELESSNESS AND ROUGH SLEEPING CONFERENCE FOR NAMES REDACTED,Online Purchase,102000,Revenues Plus,Revenues Plus
South Ribble Council,http://Statistics.Data.gov.uk\Doc\Local Authority\30UN,22/11/2020,8.44,IONOS,EXTENDED SUPPORT FOR SOUTH RIBBLE PARTNERSHIP WEBSITE,Online Purchase,103100,Revenues Plus,Revenues Plus
South Ribble Council,http://Statistics.Data.gov.uk\Doc\Local Authority\30UN,25/11/2020,27.98,AMAZON,2 X HAND MOUSE FOR PCS,Online Purchase,122600,Revenues Plus,Revenues Plus
South Ribble Council,http://Statistics.Data.gov.uk\Doc\Local Authority\30UN,30/11/2020,694.80,RICS,RICS MANDATORY CPD TRANING,Online Purchase,102000,Revenues Plus,Revenues Plus
South Ribble Council,http://Statistics.Data.gov.uk\Doc\Local Authority\30UN,02/10/2020,91.38,Morrisons,Items for Covid 19 project for food parcels,Store Purchase,101019,Regeneration,Community Infrastructure
South Ribble Council,http://Statistics.Data.gov.uk\Doc\Local Authority\30UN,08/10/2020,-135.99,Asda,Covid 19 food parcels,Store Purchase,101019,Regeneration,Community Infrastructure
South Ribble Council,http://Statistics.Data.gov.uk\Doc\Local Authority\30UN,08/10/2020,135.99,Asda,Items for Covid 19 project for food parcels,Online Purchase,101019,Regeneration,Community Infrastructure
South Ribble Council,http://Statistics.Data.gov.uk\Doc\Local Authority\30UN,08/10/2020,135.99,Asda,Items for Covid 19 project for food parcels,Online Purchase,101019,Regeneration,Community Infrastructure
South Ribble Council,http://Statistics.Data.gov.uk\Doc\Local Authority\30UN,19/10/2020,112.65,Asda,Items for Covid 19 project for food parcels,Online Purchase,101019,Regeneration,Community Infrastructure
South Ribble Council,http://Statistics.Data.gov.uk\Doc\Local Authority\30UN,22/10/2020,20.00,Post Office,Emergency utility support as part of the Covid 19 project,Store Purchase,101019,Regeneration,Community Infrastructure
South Ribble Council,http://Statistics.Data.gov.uk\Doc\Local Authority\30UN,22/10/2020,107.75,Asda,Items for Covid 19 project for food parcels,Online Purchase,101019,Regeneration,Community Infrastructure
South Ribble Council,http://Statistics.Data.gov.uk\Doc\Local Authority\30UN,26/10/2020,448.57,Asda,Items for the food parcels for the Covid 19 project,Online Purchase,101019,Regeneration,Community Infrastructure
South Ribble Council,http://Statistics.Data.gov.uk\Doc\Local Authority\30UN,29/10/2020,10.00,MandJ Convenience Store,Short term utility support,Store Purchase,101019,Regeneration,Community Infrastructure
South Ribble Council,http://Statistics.Data.gov.uk\Doc\Local Authority\30UN,29/10/2020,10.00,MandJ Convenience store,Short term utility support,Store Purchase,101019,Regeneration,Community Infrastructure
South Ribble Council,http://Statistics.Data.gov.uk\Doc\Local Authority\30UN,03/11/2020,20.00,Co-op,Utilities top up,Store Purchase,101019,Regeneration,Community Infrastructure
South Ribble Council,http://Statistics.Data.gov.uk\Doc\Local Authority\30UN,03/11/2020,76.30,Morrisons,Items for Covid 19 project,Store Purchase,101019,Regeneration,Community Infrastructure
South Ribble Council,http://Statistics.Data.gov.uk\Doc\Local Authority\30UN,02/12/2020,-1.65,Morrisons,Food for Covid Hub,Store Purchase,101019,Regeneration,Community Infrastructure
South Ribble Council,http://Statistics.Data.gov.uk\Doc\Local Authority\30UN,02/12/2020,1.65,Morrisons,Food for the hub,Store Purchase,101019,Regeneration,Community Infrastructure
South Ribble Council,http://Statistics.Data.gov.uk\Doc\Local Authority\30UN,02/12/2020,171.60,Morrisons,Food for the hub,Store Purchase,101019,Regeneration,Community Infrastructure
South Ribble Council,http://Statistics.Data.gov.uk\Doc\Local Authority\30UN,07/12/2020,75.33,Morrisons,Food for the hub,Store Purchase,101019,Regeneration,Community Infrastructure
South Ribble Council,http://Statistics.Data.gov.uk\Doc\Local Authority\30UN,10/12/2020,11.20,Tesco,Food for the hub,Store Purchase,101019,Regeneration,Community Infrastructure
South Ribble Council,http://Statistics.Data.gov.uk\Doc\Local Authority\30UN,10/12/2020,45.12,Morrisons,Food for the holiday hunger project,Store Purchase,114820,Regeneration,Community Infrastructure
South Ribble Council,http://Statistics.Data.gov.uk\Doc\Local Authority\30UN,10/12/2020,66.21,Aldi,Food for the hub,Store Purchase,101019,Regeneration,Community Infrastructure
South Ribble Council,http://Statistics.Data.gov.uk\Doc\Local Authority\30UN,10/12/2020,155.43,Morrisons,Food for the hub,Store Purchase,101019,Regeneration,Community Infrastructure
